fUST/lending_fUST_20250707
["ID","MTS","AMOUNT","RATE_DAILY","PERIOD"]
[370088984,1751878251959,-460.0,0.00017243,2]
[370088985,1751878251968,-460.0,0.00017243,2]
[370088986,1751878251979,-460.0,0.00017243,2]
[370088987,1751878251988,-460.0,0.00017243,2]
[370088988,1751878251999,-1473.58,0.00017243,2]
[370088989,1751878252008,-460.0,0.00017243,2]
[370088990,1751878252017,-206.64032371,0.00017243,2]
[370088991,1751878252027,-460.0,0.00017243,2]
[370088992,1751878252036,-460.0,0.00017243,2]
[370088993,1751878252048,-460.0,0.00017243,2]
[370088994,1751878252058,-460.0,0.00017243,2]
[370088995,1751878252068,-460.0,0.00017243,2]
[370088996,1751878252077,-460.0,0.00017243,2]
[370088997,1751878252087,-460.0,0.00017243,2]
[370088998,1751878252096,-460.0,0.00017243,2]
[370088999,1751878252105,-460.0,0.00017243,2]
[370089000,1751878252115,-476.56378878,0.00017243,2]
[370089001,1751878252124,-460.0,0.00017243,2]
[370089002,1751878252133,-537.97,0.00017243,2]
[370089003,1751878252144,-460.0,0.00017243,2]
[370089004,1751878252153,-460.0,0.00017243,2]
[370089005,1751878252163,-460.0,0.00017243,2]
[370089006,1751878252173,-460.0,0.00017243,2]
[370089007,1751878252182,-460.0,0.00017243,2]
[370089008,1751878252192,-460.0,0.00017243,2]
[370089009,1751878252201,-158.8,0.00017243,2]
[370089010,1751878252210,-460.0,0.00017243,2]
[370089011,1751878252220,-460.0,0.00017243,2]
[370089012,1751878252229,-474.52,0.00017243,2]
[370089013,1751878252238,-460.0,0.00017243,2]
[370089014,1751878252247,-460.0,0.00017243,2]
[370089015,1751878252257,-460.0,0.00017243,2]
[370089016,1751878252267,-460.0,0.00017243,2]
[370089017,1751878252276,-463.45,0.00017243,2]
[370089018,1751878252286,-515.18,0.00017243,2]
[370089019,1751878252296,-569.19,0.00017243,2]
[370089020,1751878252305,-460.0,0.00017243,2]
[370089021,1751878252315,-460.0,0.00017243,2]
[370089022,1751878252325,-474.81,0.00017243,2]
[370089023,1751878252335,-590.63,0.00017243,2]
[370089024,1751878252344,-460.0,0.00017243,2]
[370089025,1751878252353,-517.21,0.00017243,2]
[370089026,1751878252363,-600.59,0.00017243,2]
[370089027,1751878252372,-460.0,0.00017243,2]
[370089028,1751878252381,-460.0,0.00017243,2]
[370089029,1751878252391,-460.0,0.00017243,2]
[370089030,1751878252401,-471.17504284,0.00017243,2]
[370089031,1751878252410,-460.0,0.00017243,2]
[370089032,1751878252420,-460.0,0.00017243,2]
[370089033,1751878252429,-460.0,0.00017243,2]
[370089034,1751878252439,-460.95526587,0.00017243,2]
[370089035,1751878252449,-460.14,0.00017243,2]
[370089036,1751878252458,-460.0,0.00017243,2]
[370089037,1751878252468,-460.0,0.00017243,2]
[370089038,1751878252477,-460.0,0.00017243,2]
[370089039,1751878252486,-460.0,0.00017243,2]
[370089040,1751878252496,-460.0,0.00017243,2]
[370089041,1751878252506,-503.25,0.00017243,2]
[370089042,1751878252515,-500.0,0.00017243,2]
[370089043,1751878252525,-523.5499759,0.00017243,2]
[370089044,1751878252535,-1790.38,0.00017243,2]
[370089045,1751878252544,-500.0,0.00017243,2]
[370089046,1751878252554,-460.0,0.00017243,2]
[370089047,1751878252716,-1020.84,0.00017243,2]
[370089048,1751878252726,-460.0,0.00017243,2]
[370089049,1751878252735,-628.75,0.00017243,2]
[370089050,1751878252745,-724.26,0.00017243,2]
[370089051,1751878252754,-460.0,0.00017243,2]
[370089052,1751878252763,-460.0,0.00017243,2]
[370089053,1751878252773,-599.29,0.00017243,2]
[370089054,1751878252782,-460.0,0.00017243,2]
[370089055,1751878252791,-618.64,0.00017243,2]
[370089056,1751878252801,-460.0,0.00017243,2]
[370089057,1751878252812,-460.0,0.00017243,2]
[370089058,1751878252821,-460.0,0.00017243,2]
[370089059,1751878252833,-460.0,0.00017243,2]
[370089060,1751878252843,-460.0,0.00017243,2]
[370089061,1751878252852,-460.0,0.00017243,2]
[370089062,1751878252861,-460.0,0.00017243,2]
[370089063,1751878252870,-736.7,0.00017243,2]
[370089064,1751878252880,-513.26,0.00017243,2]
[370089065,1751878252890,-2101.7,0.00017243,2]
[370089066,1751878252901,-701.27,0.00017243,2]
[370089067,1751878252910,-328.53450082,0.00017243,2]
[370089068,1751878252919,-501.61,0.00017243,2]
[370089069,1751878252928,-460.0,0.00017243,2]
[370089070,1751878252938,-621.18,0.00017243,2]
[370089071,1751878252947,-460.0,0.00017243,2]
[370089072,1751878252956,-460.0,0.00017243,2]
[370089073,1751878252965,-460.0,0.00017243,2]
[370089074,1751878252975,-460.0,0.00017243,2]
[370089075,1751878252984,-460.0,0.00017243,2]
[370089076,1751878252993,-460.0,0.00017243,2]
[370089077,1751878253002,-460.0,0.00017243,2]
[370089078,1751878253012,-438.37076212,0.00017243,2]
[370089079,1751878253021,-1588.08,0.00017243,2]
[370089080,1751878253031,-460.0,0.00017243,2]
[370089081,1751878253040,-460.0,0.00017243,2]
[370089082,1751878253050,-1502.2,0.00017243,2]
[370089083,1751878253059,-460.0,0.00017243,2]
[370089084,1751878253068,-603.3,0.00017243,2]
[370089085,1751878253077,-460.0,0.00017243,2]
[370089086,1751878253087,-645.22,0.00017243,2]
[370089087,1751878253097,-460.0,0.00017243,2]
[370089088,1751878253107,-460.0,0.00017243,2]
[370089089,1751878253116,-460.0,0.00017243,2]
[370089090,1751878253125,-460.0,0.00017243,2]
[370089091,1751878253135,-460.0,0.00017243,2]
[370089092,1751878253145,-460.0,0.00017243,2]
[370089093,1751878253155,-460.0,0.00017243,2]
[370089094,1751878253164,-460.0,0.00017243,2]
[370089095,1751878253174,-460.0,0.00017243,2]
[370089096,1751878253183,-802.16,0.00017243,2]
[370089097,1751878253192,-460.0,0.00017243,2]
[370089098,1751878253202,-460.0,0.00017243,2]
[370089099,1751878253212,-582.95,0.00017243,2]
[370089100,1751878253221,-518.66,0.00017243,2]
[370089101,1751878253230,-460.0,0.00017243,2]
[370089102,1751878253239,-461.06,0.00017243,2]
[370089103,1751878253248,-460.0,0.00017243,2]
[370089104,1751878253258,-882.2,0.00017243,2]
[370089105,1751878253267,-460.0,0.00017243,2]
[370089106,1751878253277,-460.0,0.00017243,2]
[370089107,1751878253286,-460.0,0.00017243,2]
[370089108,1751878253297,-466.33,0.00017243,2]
[370089109,1751878253306,-460.0,0.00017243,2]
[370089110,1751878253316,-416.75843244,0.00017243,2]
[370089111,1751878253326,-460.0,0.00017243,2]
[370089112,1751878253335,-811.29,0.00017243,2]
[370089113,1751878253344,-333.4051946,0.00017243,2]
[370089114,1751878253354,-460.0,0.00017243,2]
[370089115,1751878253364,-460.0,0.00017243,2]
[370089116,1751878253374,-461.45731126,0.00017247,2]
[370089117,1751878253383,-460.0,0.00017247,2]
[370089118,1751878253394,-460.0,0.00017247,2]
[370089119,1751878253404,-509.40913637,0.00017247,2]
[370089120,1751878253413,-460.0,0.00017247,2]
[370089121,1751878253423,-460.0,0.00017247,2]
[370089122,1751878253432,-460.0,0.00017247,2]
[370089123,1751878253442,-460.0,0.00017247,2]
[370089124,1751878253452,-460.0,0.00017247,2]
[370089125,1751878253462,-191.02252366,0.00017247,2]
[370089126,1751878253471,-460.0,0.00017247,2]
[370089127,1751878253481,-460.0,0.00017247,2]
[370089128,1751878253491,-460.0,0.00017247,2]
[370089129,1751878253500,-460.0,0.00017247,2]
[370089130,1751878253510,-626.67103435,0.00017248,2]
[370089131,1751878253519,-528.65277084,0.00017248,2]
[370089132,1751878253529,-460.0,0.00017248,2]
[370089133,1751878253538,-460.0,0.00017248,2]
[370089134,1751878253549,-460.0,0.00017248,2]
[370089135,1751878253561,-460.0,0.00017248,2]
[370089136,1751878253570,-460.0,0.00017248,2]
[370089137,1751878253580,-1820.82,0.00017248,2]
[370089138,1751878253590,-2506.68413738,0.00017248,2]
[370089139,1751878253599,-460.0,0.00017248,2]
[370089140,1751878253608,-460.0,0.00017248,2]
[370089141,1751878253618,-460.0,0.00017248,2]
[370089142,1751878253627,-230.07088674,0.00017248,2]
[370089143,1751878253637,-460.0,0.00017248,2]
[370089144,1751878253647,-697.17,0.00017248,2]
[370089145,1751878253656,-460.0,0.00017248,2]
[370089146,1751878253665,-460.0,0.00017248,2]
[370089147,1751878253675,-584.48,0.00017248,2]
[370089148,1751878253685,-686.19,0.00017248,2]
[370089149,1751878253694,-460.0,0.00017248,2]
[370089150,1751878253704,-460.0,0.00017248,2]
[370089151,1751878253713,-460.0,0.00017248,2]
[370089152,1751878253722,-460.0,0.00017248,2]
[370089153,1751878253732,-891.26,0.00017248,2]
[370089154,1751878253741,-460.0,0.00017248,2]
[370089155,1751878253750,-460.0,0.00017248,2]
[370089156,1751878253759,-597.07,0.00017248,2]
[370089157,1751878253768,-460.0,0.00017248,2]
[370089158,1751878253777,-511.02,0.00017248,2]
[370089159,1751878253787,-461.69,0.00017248,2]
[370089160,1751878253796,-461.316635,0.00017248,2]
[370089161,1751878253805,-460.0,0.00017248,2]
[370089162,1751878253817,-460.0,0.00017248,2]
[370089163,1751878253827,-460.0,0.00017248,2]
[370089164,1751878253835,-460.0,0.00017248,2]
[370089165,1751878253845,-460.0,0.00017248,2]
[370089166,1751878253854,-460.0,0.00017248,2]
[370089167,1751878253863,-5634.3992698,0.00017248,2]
[370089168,1751878253872,-2112.49647228,0.00017248,2]
[370089169,1751878253882,-460.0,0.00017248,2]
[370089170,1751878253894,-460.0,0.00017248,2]
[370089171,1751878253904,-460.0,0.00017249,2]
[370089172,1751878253913,-460.0,0.00017249,2]
[370089173,1751878253922,-460.0,0.00017249,2]
[370089174,1751878253932,-460.0,0.00017249,2]
[370089175,1751878253942,-460.0,0.00017249,2]
[370089176,1751878253951,-503.18409847,0.00017249,2]
[370089177,1751878253960,-460.0,0.00017249,2]
[370089178,1751878253969,-460.0,0.00017249,2]
[370089179,1751878253978,-460.0,0.00017249,2]
[370089180,1751878253987,-579.14,0.00017249,2]
[370089181,1751878253997,-522.99310749,0.00017249,2]
[370089182,1751878254006,-542.2085623,0.00017249,2]
[370089183,1751878254015,-2604.48354637,0.00017249,2]
[370089184,1751878254025,-500.0,0.00017273,2]
[370089185,1751878254034,-500.0,0.00017273,2]
[370089186,1751878254044,-500.0,0.00017273,2]
[370089187,1751878254054,-500.0,0.00017273,2]
[370089188,1751878254063,-500.0,0.00017273,2]
[370089189,1751878254073,-281.82186552,0.00017273,2]
[370089190,1751878254082,-500.0,0.00017273,2]
[370089191,1751878254091,-500.0,0.00017273,2]
[370089192,1751878254101,-500.0,0.00017273,2]
[370089193,1751878254110,-500.0,0.00017273,2]
[370089194,1751878254120,-500.0,0.00017273,2]
[370089195,1751878254130,-500.0,0.00017273,2]
[370089196,1751878254140,-500.0,0.00017276,2]
[370089197,1751878254149,-500.0,0.00017276,2]
[370089198,1751878254160,-500.0,0.00017276,2]
[370089199,1751878254170,-500.0,0.00017276,2]
[370089200,1751878254179,-341.91460913,0.00017276,2]
[370089201,1751878254190,-452.66420025,0.00017276,2]
[370089202,1751878254199,-427.32167828,0.00017276,2]
[370089203,1751878254210,-500.0,0.00017276,2]
[370089204,1751878254219,-500.0,0.00017276,2]
[370089205,1751878254228,-500.0,0.00017276,2]
[370089206,1751878254238,-500.0,0.00017276,2]
[370089207,1751878254247,-500.0,0.00017276,2]
[370089208,1751878254256,-500.0,0.00017276,2]
[370089209,1751878254266,-500.0,0.00017276,2]
[370089210,1751878254275,-500.0,0.00017276,2]
[370089211,1751878254285,-500.0,0.00017276,2]
[370089212,1751878254294,-500.0,0.00017276,2]
[370089213,1751878254304,-500.0,0.00017276,2]
[370089214,1751878254313,-500.0,0.00017276,2]
[370089215,1751878254322,-500.0,0.00017276,2]
[370089216,1751878254332,-500.0,0.00017276,2]
[370089217,1751878254341,-1834.45835101,0.00017281,2]
[370089218,1751878254350,-151.0,0.000173,2]
[370089219,1751878254360,-7880.90807553,0.00017317,2]
[370089220,1751878254369,-5178.7335176,0.00017376,2]
[370089221,1751878254379,-475.24,0.00017408,2]
[370089222,1751878254388,-460.0,0.00017408,2]
[370089223,1751878254398,-634.64,0.00017408,2]
[370089224,1751878254408,-460.0,0.00017408,2]
[370089225,1751878254418,-460.0,0.00017408,2]
[370089226,1751878254427,-578.27,0.00017408,2]
[370089227,1751878254437,-545.34329126,0.00017408,2]
[370089228,1751878254446,-714.52,0.00017408,2]
[370089229,1751878254456,-3372.58,0.00017408,2]
[370089230,1751878254466,-460.0,0.00017408,2]
[370089231,1751878254476,-460.0,0.00017408,2]
[370089232,1751878254486,-460.0,0.00017408,2]
[370089233,1751878254496,-460.0,0.00017408,2]
[370089234,1751878254505,-557.47,0.00017408,2]
[370089235,1751878254515,-472.32822401,0.00017408,2]
[370089236,1751878254525,-460.0,0.00017408,2]
[370089237,1751878254534,-470.38781937,0.00017408,2]
[370089238,1751878254544,-460.0,0.00017408,2]
[370089239,1751878254553,-476.15,0.00017408,2]
[370089240,1751878254563,-41748.02338507,0.00017412,2]
[370089241,1751878254572,-12261.71172477,0.00017412,2]
[370089242,1751878254583,-460.0,0.00017412,2]
[370089243,1751878254592,-460.0,0.00017412,2]
[370089244,1751878254601,-460.0,0.00017412,2]
[370089245,1751878254611,-460.0,0.00017412,2]
[370089246,1751878254620,-460.0,0.00017412,2]
[370089247,1751878254630,-460.0,0.00017412,2]
[370089248,1751878254639,-373.15913016,0.00017412,2]
[370089249,1751878254649,-460.0,0.00017412,2]
[370089250,1751878254658,-460.0,0.00017412,2]
[370089251,1751878254668,-460.0,0.00017412,2]
[370089252,1751878254678,-460.0,0.00017412,2]
[370089253,1751878254688,-460.0,0.00017412,2]
[370089254,1751878254698,-460.0,0.00017412,2]
[370089255,1751878254708,-460.0,0.00017412,2]
[370089256,1751878254717,-460.0,0.00017412,2]
[370089257,1751878254726,-460.0,0.00017412,2]
[370089258,1751878254736,-460.0,0.00017412,2]
[370089259,1751878254745,-199.17324625,0.00017412,2]
[370089260,1751878254755,-460.0,0.00017412,2]
[370089261,1751878254764,-5018.54,0.00017412,2]
[370089262,1751878254774,-460.0,0.00017412,2]
[370089263,1751878254784,-460.0,0.00017412,2]
[370089264,1751878254793,-473.43,0.00017412,2]
[370089265,1751878254805,-460.0,0.00017412,2]
[370089266,1751878254818,-212.08297394,0.00017412,2]
[370089267,1751878254828,-978.43,0.00017412,2]
[370089268,1751878254837,-877.49,0.00017412,2]
[370089269,1751878254847,-460.0,0.00017412,2]
[370089270,1751878254856,-460.0,0.00017412,2]
[370089271,1751878254866,-460.0,0.00017412,2]
[370089272,1751878254876,-460.0,0.00017412,2]
[370089273,1751878254885,-460.0,0.00017412,2]
[370089274,1751878254895,-460.0,0.00017412,2]
[370089275,1751878254904,-460.0,0.00017412,2]
[370089276,1751878254913,-4865.84,0.00017412,2]
[370089277,1751878254923,-460.0,0.00017412,2]
[370089278,1751878254932,-460.0,0.00017412,2]
[370089279,1751878254941,-460.0,0.00017412,2]
[370089280,1751878254950,-460.0,0.00017412,2]
[370089281,1751878254959,-8429.87,0.00017412,2]
[370089282,1751878254969,-444.03564968,0.00017412,2]
[370089283,1751878254979,-1078.12,0.00017412,2]
[370089284,1751878254988,-455.0,0.00017412,2]
[370089285,1751878254998,-460.0,0.00017412,2]
[370089286,1751878255008,-460.0,0.00017412,2]
[370089287,1751878255018,-460.0,0.00017412,2]
[370089288,1751878255027,-460.0,0.00017412,2]
[370089289,1751878255036,-460.0,0.00017412,2]
[370089290,1751878255046,-460.0,0.00017412,2]
[370089291,1751878255055,-460.0,0.00017412,2]
[370089292,1751878255065,-460.0,0.00017412,2]
[370089293,1751878255074,-460.0,0.00017412,2]
[370089294,1751878255083,-814.88,0.00017412,2]
[370089295,1751878255092,-460.0,0.00017412,2]
[370089296,1751878255102,-1523.08,0.00017412,2]
[370089297,1751878255111,-758.47,0.00017413,2]
[370089298,1751878255120,-460.0,0.00017413,2]
[370089299,1751878255131,-460.0,0.00017413,2]
[370089300,1751878255286,-460.0,0.00017413,2]
[370089301,1751878255296,-460.0,0.00017413,2]
[370089302,1751878255305,-648.63,0.00017413,2]
[370089303,1751878255315,-4741.33,0.00017413,2]
[370089304,1751878255324,-415.63296856,0.00017413,2]
[370089305,1751878255333,-815.67,0.00017413,2]
[370089306,1751878255343,-4342.85,0.00017413,2]
[370089307,1751878255351,-460.0,0.00017413,2]
[370089308,1751878255361,-460.0,0.00017413,2]
[370089309,1751878255370,-460.0,0.00017413,2]
[370089310,1751878255380,-460.0,0.00017413,2]
[370089311,1751878255389,-1322.28,0.00017413,2]
[370089312,1751878255399,-460.0,0.00017414,2]
[370089313,1751878255408,-460.0,0.00017414,2]
[370089314,1751878255418,-460.0,0.00017414,2]
[370089315,1751878255428,-612.32,0.00017414,2]
[370089316,1751878255437,-586.81,0.00017414,2]
[370089317,1751878255446,-460.0,0.00017414,2]
[370089318,1751878255455,-460.0,0.00017414,2]
[370089319,1751878255465,-460.0,0.00017414,2]
[370089320,1751878255475,-541.27890861,0.00017414,2]
[370089321,1751878255485,-460.0,0.00017414,2]
[370089322,1751878255495,-460.0,0.00017414,2]
[370089323,1751878255505,-978.47,0.00017414,2]
[370089324,1751878255515,-1929.95,0.00017414,2]
[370089325,1751878255525,-460.0,0.00017414,2]
[370089326,1751878255535,-479.04,0.00017414,2]
[370089327,1751878255546,-460.0,0.00017414,2]
[370089328,1751878255556,-460.0,0.00017414,2]
[370089329,1751878255566,-530.18536492,0.00017414,2]
[370089330,1751878255575,-460.0,0.00017414,2]
[370089331,1751878255585,-160.0,0.00017414,2]
[370089332,1751878255595,-460.0,0.00017414,2]
[370089333,1751878255604,-460.0,0.00017414,2]
[370089334,1751878255613,-961.6,0.00017414,2]
[370089335,1751878255623,-1232.5,0.00017414,2]
[370089336,1751878255634,-2371.65,0.00017414,2]
[370089337,1751878255643,-460.0,0.00017414,2]
[370089338,1751878255653,-1116.74,0.00017414,2]
[370089339,1751878255662,-4190.5,0.00017414,2]
[370089340,1751878255674,-460.0,0.00017414,2]
[370089341,1751878255685,-584.79,0.00017414,2]
[370089342,1751878255697,-460.0,0.00017416,2]
[370089343,1751878255707,-460.0,0.00017416,2]
[370089344,1751878255716,-460.0,0.00017416,2]
[370089345,1751878255725,-460.0,0.00017416,2]
[370089346,1751878255734,-460.0,0.00017416,2]
[370089347,1751878255743,-460.0,0.00017416,2]
[370089348,1751878255753,-460.0,0.00017416,2]
[370089349,1751878255762,-460.0,0.00017416,2]
[370089350,1751878255771,-460.0,0.00017416,2]
[370089351,1751878255781,-460.0,0.00017416,2]
[370089352,1751878255790,-460.0,0.00017416,2]
[370089353,1751878255800,-460.0,0.00017416,2]
[370089354,1751878255813,-460.0,0.00017416,2]
[370089355,1751878255825,-460.0,0.00017416,2]
[370089356,1751878255834,-460.0,0.00017416,2]
[370089357,1751878255843,-460.0,0.00017416,2]
[370089358,1751878255853,-460.0,0.00017416,2]
[370089359,1751878255862,-460.0,0.00017416,2]
[370089360,1751878255871,-504.54,0.00017416,2]
[370089361,1751878255881,-460.0,0.00017416,2]
[370089362,1751878255891,-460.0,0.00017416,2]
[370089363,1751878255901,-460.0,0.00017416,2]
[370089364,1751878255911,-460.0,0.00017416,2]
[370089365,1751878255923,-460.0,0.00017416,2]
[370089366,1751878255932,-460.0,0.00017416,2]
[370089367,1751878255942,-460.0,0.00017416,2]
[370089368,1751878255951,-813.31,0.00017416,2]
[370089369,1751878255961,-460.0,0.00017416,2]
[370089370,1751878255971,-696.66,0.00017416,2]
[370089371,1751878256188,-460.0,0.00017416,2]
[370089372,1751878256198,-460.0,0.00017416,2]
[370089373,1751878256207,-460.0,0.00017416,2]
[370089374,1751878256216,-460.0,0.00017416,2]
[370089375,1751878256226,-460.0,0.00017416,2]
[370089376,1751878256235,-460.0,0.00017416,2]
[370089377,1751878256246,-460.0,0.00017416,2]
[370089378,1751878256256,-460.0,0.00017416,2]
[370089379,1751878256266,-460.0,0.00017416,2]
[370089380,1751878256276,-460.0,0.00017416,2]
[370089381,1751878256286,-460.0,0.00017416,2]
[370089382,1751878256296,-642.4,0.00017416,2]
[370089383,1751878256306,-989.64,0.00017416,2]
[370089384,1751878256317,-591.78,0.00017416,2]
[370089385,1751878256328,-460.0,0.00017416,2]
[370089386,1751878256338,-460.0,0.00017416,2]
[370089387,1751878256348,-460.0,0.00017416,2]
[370089388,1751878256358,-549.97,0.00017416,2]
[370089389,1751878256368,-460.0,0.00017416,2]
[370089390,1751878256378,-668.91,0.00017416,2]
[370089391,1751878256389,-460.0,0.00017416,2]
[370089392,1751878256399,-460.0,0.00017416,2]
[370089393,1751878256408,-1175.75,0.00017416,2]
[370089394,1751878256418,-460.0,0.00017416,2]
[370089395,1751878256429,-575.32,0.00017416,2]
[370089396,1751878256438,-501.04,0.00017416,2]
[370089397,1751878256447,-460.0,0.00017416,2]
[370089398,1751878256458,-460.0,0.00017416,2]
[370089399,1751878256468,-460.0,0.00017416,2]
[370089400,1751878256478,-460.0,0.00017416,2]
[370089401,1751878256487,-460.0,0.00017416,2]
[370089402,1751878256497,-460.0,0.00017416,2]
[370089403,1751878256507,-460.0,0.00017416,2]
[370089404,1751878256518,-1816.74,0.00017416,2]
[370089405,1751878256528,-460.0,0.00017416,2]
[370089406,1751878256538,-460.0,0.00017416,2]
[370089407,1751878256548,-460.0,0.00017416,2]
[370089408,1751878256557,-460.0,0.00017416,2]
[370089409,1751878256566,-627.71,0.00017416,2]
[370089410,1751878256575,-1190.73,0.00017416,2]
[370089411,1751878256584,-460.0,0.00017416,2]
[370089412,1751878256594,-460.0,0.00017416,2]
[370089413,1751878256603,-1436.76,0.00017416,2]
[370089414,1751878256613,-460.0,0.00017416,2]
[370089415,1751878256621,-460.0,0.00017416,2]
[370089416,1751878256630,-744.3,0.00017416,2]
[370089417,1751878256639,-460.0,0.00017416,2]
[370089418,1751878256649,-460.0,0.00017417,2]
[370089419,1751878256658,-460.0,0.00017417,2]
[370089420,1751878256667,-460.0,0.00017417,2]
[370089421,1751878256677,-460.0,0.00017417,2]
[370089422,1751878256686,-460.0,0.00017417,2]
[370089423,1751878256697,-460.0,0.00017417,2]
[370089424,1751878256706,-460.0,0.00017417,2]
[370089425,1751878256716,-460.0,0.00017417,2]
[370089426,1751878256726,-460.0,0.00017417,2]
[370089427,1751878256737,-460.0,0.00017417,2]
[370089428,1751878256748,-460.0,0.00017417,2]
[370089429,1751878256758,-460.0,0.00017417,2]
[370089430,1751878256768,-460.0,0.00017417,2]
[370089431,1751878256777,-460.0,0.00017417,2]
[370089432,1751878256786,-460.0,0.00017417,2]
[370089433,1751878256795,-460.0,0.00017417,2]
[370089434,1751878256815,-1626.87,0.00017417,2]
[370089435,1751878256825,-1041.83,0.00017417,2]
[370089436,1751878256836,-460.0,0.00017417,2]
[370089437,1751878256846,-460.0,0.00017417,2]
[370089438,1751878256855,-1219.94,0.00017417,2]
[370089439,1751878256865,-11783.72,0.00017417,2]
[370089440,1751878256875,-516.28,0.00017417,2]
[370089441,1751878256885,-1126.4,0.00017417,2]
[370089442,1751878256896,-3083.89,0.00017417,2]
[370089443,1751878256905,-746.91,0.00017417,2]
[370089444,1751878256914,-460.0,0.00017417,2]
[370089445,1751878256925,-1051.67,0.00017417,2]
[370089446,1751878256935,-500.0,0.00017418,2]
[370089447,1751878256946,-460.0,0.00017418,2]
[370089448,1751878256957,-460.0,0.00017418,2]
[370089449,1751878256969,-460.0,0.00017418,2]
[370089450,1751878256979,-460.0,0.00017418,2]
[370089451,1751878256989,-460.0,0.00017418,2]
[370089452,1751878256999,-460.0,0.00017418,2]
[370089453,1751878257010,-460.0,0.00017418,2]
[370089454,1751878257020,-460.0,0.00017418,2]
[370089455,1751878257030,-591.6,0.00017418,2]
[370089456,1751878257041,-566.95,0.00017418,2]
[370089457,1751878257051,-569.03877384,0.00017418,2]
[370089458,1751878257062,-460.0,0.00017418,2]
[370089459,1751878257071,-460.0,0.00017418,2]
[370089460,1751878257082,-460.0,0.00017418,2]
[370089461,1751878257092,-460.0,0.00017418,2]
[370089462,1751878257103,-460.0,0.00017418,2]
[370089463,1751878257113,-460.0,0.00017418,2]
[370089464,1751878257122,-460.0,0.00017516,2]
[370089465,1751878257132,-460.0,0.00017516,2]
[370089466,1751878257141,-460.0,0.00017516,2]
[370089467,1751878257151,-460.0,0.00017516,2]
[370089468,1751878257161,-460.0,0.00017516,2]
[370089469,1751878257170,-460.0,0.00017516,2]
[370089470,1751878257179,-1466.61,0.00017516,2]
[370089471,1751878257189,-460.0,0.00017516,2]
[370089472,1751878257199,-1693.65,0.00017516,2]
[370089473,1751878257209,-460.0,0.00017516,2]
[370089474,1751878257218,-511.73,0.00017516,2]
[370089475,1751878257228,-5131.36,0.00017516,2]
[370089476,1751878257237,-460.0,0.00017516,2]
[370089477,1751878257248,-927.78,0.00017516,2]
[370089478,1751878257257,-460.0,0.00017516,2]
[370089479,1751878257266,-2375.1,0.00017516,2]
[370089480,1751878257276,-460.0,0.00017516,2]
[370089481,1751878257285,-4148.36,0.00017516,2]
[370089482,1751878257295,-460.0,0.00017516,2]
[370089483,1751878257304,-1006.41,0.00017516,2]